fUSD/lending_fUSD_20250609
["ID","MTS","AMOUNT","RATE_DAILY","PERIOD"]
[365164682,1749507043873,-490.0,0.00019178,2]
[365164683,1749507043882,-490.0,0.00019178,2]
[365164684,1749507043891,-490.0,0.00019178,2]
[365164685,1749507043901,-490.0,0.00019178,2]
[365164686,1749507043910,-490.0,0.00019178,2]
[365164687,1749507043919,-490.0,0.00019178,2]
[365164688,1749507043929,-490.0,0.00019178,2]
[365164689,1749507043939,-490.0,0.00019178,2]
[365164690,1749507043948,-880.94,0.00019178,2]
[365164691,1749507043958,-490.0,0.00019178,2]
[365164692,1749507043967,-628.27,0.00019178,2]
[365164693,1749507043976,-559.06,0.00019178,2]
[365164694,1749507043986,-490.0,0.00019178,2]
[365164695,1749507043995,-490.0,0.00019178,2]
[365164696,1749507044005,-490.0,0.00019178,2]
[365164697,1749507044014,-490.0,0.00019178,2]
[365164698,1749507044024,-490.0,0.00019178,2]
[365164699,1749507044033,-217.21640809,0.00019178,2]
[365164700,1749507044060,-358.33359191,0.00019178,2]
[365164701,1749507044070,-439.94675743,0.00019178,2]
[365164702,1749507044082,-50.05324257,0.00019178,2]
[365164703,1749507044095,-669.35,0.00019178,2]
[365164704,1749507044104,-490.0,0.00019178,2]
[365164705,1749507044114,-643.38,0.00019178,2]
[365164706,1749507044123,-490.0,0.00019178,2]
[365164707,1749507044132,-490.0,0.00019178,2]
[365164708,1749507044142,-682.85,0.00019178,2]
[365164709,1749507044151,-490.0,0.00019178,2]
[365164710,1749507044161,-1065.97,0.00019178,2]
[365164711,1749507044171,-430.87975743,0.00019178,2]
[365164712,1749507044183,-59.12024257,0.00019178,2]
[365164713,1749507044193,-490.0,0.00019178,2]
[365164714,1749507044203,-490.0,0.00019178,2]
[365164715,1749507044213,-490.0,0.00019178,2]
[365164716,1749507044223,-490.0,0.00019178,2]
[365164717,1749507044232,-490.0,0.00019178,2]
[365164718,1749507044245,-1065.55,0.00019178,2]
[365164719,1749507044255,-490.0,0.00019178,2]
[365164720,1749507044265,-490.0,0.00019178,2]
[365164721,1749507044275,-503.4,0.00019178,2]
[365164722,1749507044286,-851.4,0.00019178,2]
[365164723,1749507044297,-490.0,0.00019178,2]
[365164724,1749507044306,-803.18,0.00019178,2]
[365164725,1749507044317,-530.24,0.00019178,2]
[365164726,1749507044327,-490.0,0.00019178,2]
[365164727,1749507044338,-490.0,0.00019178,2]
[365164728,1749507044348,-490.0,0.00019178,2]
[365164729,1749507044358,-490.0,0.00019178,2]
[365164730,1749507044369,-1150.13,0.00019178,2]
[365164731,1749507044381,-490.0,0.00019178,2]
[365164732,1749507044391,-853.07,0.00019178,2]
[365164733,1749507044401,-490.0,0.00019178,2]
[365164734,1749507044414,-490.0,0.00019178,2]
[365164735,1749507044426,-699.7,0.00019178,2]
[365164736,1749507044435,-490.0,0.00019178,2]
[365164737,1749507044445,-490.0,0.00019178,2]
[365164738,1749507044455,-819.46,0.00019178,2]
[365164739,1749507044464,-490.0,0.00019178,2]
[365164740,1749507044474,-490.0,0.00019178,2]
[365164741,1749507044483,-490.0,0.00019178,2]
[365164742,1749507044493,-490.0,0.00019178,2]
[365164743,1749507044503,-490.0,0.00019178,2]
[365164744,1749507044512,-701.94,0.00019178,2]
[365164745,1749507044522,-854.05,0.00019178,2]
[365164746,1749507044531,-111.1942806,0.00019178,2]
[365164747,1749507044548,-378.8057194,0.00019178,2]
[365164748,1749507044558,-490.0,0.00019178,2]
[365164749,1749507044568,-709.31,0.00019178,2]
[365164750,1749507044577,-490.0,0.00019178,2]
[365164751,1749507044588,-490.0,0.00019178,2]
[365164752,1749507044598,-490.0,0.00019178,2]
[365164753,1749507044607,-490.0,0.00019178,2]
[365164754,1749507044618,-490.0,0.00019178,2]
[365164755,1749507044627,-1420.54,0.00019178,2]
[365164756,1749507044637,-973.4,0.00019178,2]
[365164757,1749507044646,-490.0,0.00019178,2]
[365164758,1749507044655,-263.58042378,0.00019178,2]
[365164759,1749507044665,-490.0,0.00019178,2]
[365164760,1749507044676,-490.0,0.00019178,2]
[365164761,1749507044686,-490.0,0.00019178,2]
[365164762,1749507044696,-490.0,0.00019178,2]
[365164763,1749507044706,-490.0,0.00019178,2]
[365164764,1749507044717,-490.0,0.00019178,2]
[365164765,1749507044727,-269.89222124,0.00019178,2]
[365164766,1749507044737,-490.0,0.00019178,2]
[365164767,1749507044747,-490.0,0.00019178,2]
[365164768,1749507044757,-254.26593209,0.00019178,2]
[365164769,1749507044767,-508.53,0.00019178,2]
[365164770,1749507044777,-490.0,0.00019178,2]
[365164771,1749507044787,-499.64,0.00019178,2]
[365164772,1749507044796,-856.32,0.00019178,2]
[365164773,1749507044807,-287.60360687,0.00019178,2]
[365164774,1749507044816,-532.35,0.00019178,2]
[365164775,1749507044826,-358.30586089,0.00019178,2]
[365164776,1749507044838,-490.0,0.00019178,2]
[365164777,1749507044847,-1004.19,0.00019178,2]
[365164778,1749507044857,-490.0,0.00019178,2]
[365164779,1749507044866,-490.0,0.00019178,2]
[365164780,1749507044876,-490.0,0.00019178,2]
[365164781,1749507044885,-1058.91,0.00019178,2]
[365164782,1749507044895,-490.0,0.00019178,2]
[365164783,1749507044905,-535.1,0.00019178,2]
[365164784,1749507044914,-634.22,0.00019178,2]
[365164785,1749507044924,-490.0,0.00019178,2]
[365164786,1749507044934,-490.0,0.00019178,2]
[365164787,1749507044943,-490.0,0.00019178,2]
[365164788,1749507044953,-480.0,0.00019178,2]
[365164789,1749507044963,-490.0,0.00019178,2]
[365164790,1749507044973,-490.0,0.00019178,2]
[365164791,1749507044982,-492.34,0.00019178,2]
[365164792,1749507044992,-490.0,0.00019178,2]
[365164793,1749507045002,-490.0,0.00019178,2]
[365164794,1749507045012,-513.15,0.00019178,2]
[365164795,1749507045022,-490.0,0.00019178,2]
[365164796,1749507045032,-565.17,0.00019178,2]
[365164797,1749507045042,-490.0,0.00019178,2]
[365164798,1749507045052,-490.0,0.00019178,2]
[365164799,1749507045062,-491.05673307,0.00019178,2]
[365164800,1749507045071,-490.0,0.00019178,2]
[365164801,1749507045081,-490.0,0.00019178,2]
[365164802,1749507045092,-1007.95,0.00019178,2]
[365164803,1749507045102,-490.0,0.00019178,2]
[365164804,1749507045112,-620.03,0.00019178,2]
[365164805,1749507045122,-490.0,0.00019178,2]
[365164806,1749507045131,-460.0,0.00019178,2]
[365164807,1749507045141,-1164.18,0.00019178,2]
[365164808,1749507045151,-490.0,0.00019178,2]
[365164809,1749507045161,-634.76,0.00019178,2]
[365164810,1749507045171,-490.0,0.00019178,2]
[365164811,1749507045181,-490.0,0.00019178,2]
[365164812,1749507045190,-490.0,0.00019178,2]
[365164813,1749507045200,-188.92940111,0.00019178,2]
[365164814,1749507045210,-490.0,0.00019178,2]
[365164815,1749507045219,-490.0,0.00019178,2]
[365164816,1749507045229,-542.72,0.00019178,2]
[365164817,1749507045239,-551.16,0.00019178,2]
[365164818,1749507045251,-490.0,0.00019178,2]
[365164819,1749507045262,-480.0,0.00019178,2]
[365164820,1749507045273,-926.98,0.00019178,2]
[365164821,1749507045283,-490.0,0.00019178,2]
[365164822,1749507045294,-490.0,0.00019178,2]
[365164823,1749507045304,-490.0,0.00019178,2]
[365164824,1749507045314,-524.82,0.00019178,2]
[365164825,1749507045325,-490.0,0.00019178,2]
[365164826,1749507045337,-490.0,0.00019178,2]
[365164827,1749507045347,-1358.3,0.00019178,2]
[365164828,1749507045357,-582.72,0.00019178,2]
[365164829,1749507045367,-490.0,0.00019178,2]
[365164830,1749507045377,-1000.91,0.00019178,2]
[365164831,1749507045386,-490.0,0.00019178,2]
[365164832,1749507045396,-1005.84,0.00019178,2]
[365164833,1749507045406,-490.0,0.00019178,2]
[365164834,1749507045416,-490.0,0.00019178,2]
[365164835,1749507045425,-799.5,0.00019178,2]
[365164836,1749507045436,-625.68,0.00019178,2]
[365164837,1749507045446,-490.0,0.00019178,2]
[365164838,1749507045456,-490.0,0.00019178,2]
[365164839,1749507045466,-490.0,0.00019178,2]
[365164840,1749507045476,-490.0,0.00019178,2]
[365164841,1749507045486,-725.72,0.00019178,2]
[365164842,1749507045496,-490.0,0.00019178,2]
[365164843,1749507045506,-490.0,0.00019178,2]
[365164844,1749507045516,-831.35,0.00019178,2]
[365164845,1749507045526,-490.0,0.00019178,2]
[365164846,1749507045536,-490.0,0.00019178,2]
[365164847,1749507045545,-663.1,0.00019178,2]
[365164848,1749507045556,-490.0,0.00019178,2]
[365164849,1749507045566,-490.0,0.00019178,2]
[365164850,1749507045575,-17725.6,0.00019178,2]
[365164851,1749507045586,-735.23,0.00019178,2]
[365164852,1749507045596,-490.0,0.00019178,2]
[365164853,1749507045606,-490.0,0.00019178,2]
[365164854,1749507045616,-1098.27,0.00019178,2]
[365164855,1749507045626,-490.0,0.00019178,2]
[365164856,1749507045636,-490.0,0.00019178,2]
[365164857,1749507045646,-1889.3,0.00019178,2]
[365164858,1749507045655,-490.0,0.00019178,2]
[365164859,1749507045664,-893.16,0.00019178,2]
[365164860,1749507045674,-490.0,0.00019178,2]
[365164861,1749507045685,-1897.75,0.00019178,2]
[365164862,1749507045695,-1777.32,0.00019178,2]
[365164863,1749507045713,-941.76,0.00019178,2]
[365164864,1749507045723,-490.0,0.00019178,2]
[365164865,1749507045734,-490.0,0.00019178,2]
[365164866,1749507045744,-755.0,0.00019178,2]
[365164867,1749507045754,-772.99,0.00019178,2]
[365164868,1749507045764,-737.76,0.00019178,2]
[365164869,1749507045773,-490.0,0.00019178,2]
[365164870,1749507045783,-4416.68,0.00019178,2]
[365164871,1749507045792,-1000.0,0.00019178,2]
[365164872,1749507045802,-490.0,0.00019178,2]
[365164873,1749507045811,-522.07,0.00019178,2]
[365164874,1749507045821,-887.87,0.00019178,2]
[365164875,1749507045830,-490.0,0.00019178,2]
[365164876,1749507045840,-490.0,0.00019178,2]
[365164877,1749507045850,-490.0,0.00019178,2]
[365164878,1749507045859,-539.06,0.00019178,2]
[365164880,1749507045869,-490.0,0.00019178,2]
[365164881,1749507045878,-1071.93,0.00019178,2]
[365164882,1749507045887,-490.0,0.00019178,2]
[365164883,1749507045896,-2203.56,0.00019178,2]
[365164885,1749507045905,-895.5,0.00019178,2]
[365164886,1749507045915,-1853.88,0.00019178,2]
[365164887,1749507045924,-490.0,0.00019178,2]
[365164888,1749507045933,-603.49,0.00019178,2]
[365164889,1749507045943,-1096.19,0.00019178,2]
[365164890,1749507045952,-2948.66,0.00019178,2]
[365164891,1749507045961,-959.14,0.00019178,2]
[365164892,1749507045971,-737.54,0.00019178,2]
[365164893,1749507045979,-490.0,0.00019178,2]
[365164901,1749507046106,-511.01,0.00019178,2]
[365164902,1749507046130,-782.91,0.00019178,2]
[365164903,1749507046140,-2132.88,0.00019178,2]
[365164904,1749507046150,-1279.96,0.00019178,2]
[365164905,1749507046161,-1107.22,0.00019178,2]
[365164906,1749507046170,-783.34,0.00019178,2]
[365164907,1749507046179,-1751.55,0.00019178,2]
[365164908,1749507046189,-1036.43,0.00019178,2]
[365164909,1749507046198,-1078.36,0.00019178,2]
[365164910,1749507046208,-490.0,0.00019178,2]
[365164911,1749507046217,-572.71,0.00019178,2]
[365164912,1749507046227,-760.12,0.00019178,2]
[365164913,1749507046238,-860.09,0.00019178,2]
[365164914,1749507046250,-490.0,0.00019178,2]
[365164915,1749507046260,-272.7746229,0.00019178,2]
[365164916,1749507046270,-600.61,0.00019178,2]
[365164917,1749507046279,-593.68,0.00019178,2]
[365164918,1749507046290,-1467.53,0.00019178,2]
[365164919,1749507046299,-490.0,0.00019178,2]
[365164920,1749507046308,-490.0,0.00019178,2]
[365164921,1749507046318,-490.0,0.00019178,2]
[365164922,1749507046330,-1154.55,0.00019178,2]
[365164923,1749507046342,-490.0,0.00019178,2]
[365164924,1749507046351,-490.0,0.00019178,2]
[365164925,1749507046361,-506.84,0.00019178,2]
[365164926,1749507046371,-1287.49,0.00019178,2]
[365164927,1749507046381,-490.0,0.00019178,2]
[365164928,1749507046391,-490.0,0.00019178,2]
[365164929,1749507046402,-519.38,0.00019178,2]
[365164930,1749507046413,-609.94906902,0.00019178,2]
[365164931,1749507046424,-544.5,0.00019178,2]
[365164932,1749507046437,-811.36,0.00019178,2]
[365164933,1749507046447,-1631.08,0.00019178,2]
[365164934,1749507046456,-1373.97,0.00019178,2]
[365164935,1749507046465,-500.0,0.00019178,2]
[365164936,1749507046475,-1186.56,0.00019178,2]
[365164937,1749507046484,-1060.77,0.00019178,2]
[365164938,1749507046493,-490.0,0.00019178,2]
[365164939,1749507046503,-893.86,0.00019178,2]
[365164940,1749507046512,-2331.05,0.00019178,2]
[365164941,1749507046521,-760.97,0.00019178,2]
[365164942,1749507046531,-1151.75,0.00019178,2]
[365164943,1749507046541,-696.71,0.00019178,2]
[365164944,1749507046550,-1660.96,0.00019178,2]
[365164945,1749507046559,-490.0,0.00019178,2]
[365164946,1749507046570,-910.84,0.00019178,2]
[365164947,1749507046580,-498.91,0.00019178,2]
[365164948,1749507046591,-826.27,0.00019178,2]
[365164950,1749507046600,-570.38,0.00019178,2]
[365164952,1749507046609,-545.6,0.00019178,2]
[365164953,1749507046619,-3056.8,0.00019178,2]
[365164955,1749507046628,-490.0,0.00019178,2]
[365164958,1749507046638,-717.36,0.00019178,2]
[365164959,1749507046647,-491.0,0.00019178,2]
[365164960,1749507046657,-721.08,0.00019178,2]
[365164961,1749507046667,-490.0,0.00019178,2]
[365164962,1749507046677,-490.0,0.00019178,2]
[365164963,1749507046690,-1034.39,0.00019178,2]
[365164964,1749507046702,-422.12269586,0.00019178,2]
[365164965,1749507046712,-490.0,0.00019178,2]
[365164966,1749507046722,-490.0,0.00019178,2]
[365164967,1749507046732,-566.73,0.00019178,2]
[365164968,1749507046741,-490.0,0.00019178,2]
[365164969,1749507046751,-490.0,0.00019178,2]
[365164970,1749507046760,-490.0,0.00019178,2]
[365164971,1749507046770,-547.78,0.00019178,2]
[365164972,1749507046779,-490.0,0.00019178,2]
[365164974,1749507046789,-1318.97,0.00019178,2]
[365164975,1749507046798,-490.0,0.00019178,2]
[365164976,1749507046806,-490.0,0.00019178,2]
[365164977,1749507046816,-509.39,0.00019178,2]
[365164978,1749507046825,-819.28,0.00019178,2]
[365164979,1749507046835,-490.0,0.00019178,2]
[365164980,1749507046845,-490.0,0.00019178,2]
[365164981,1749507046854,-490.0,0.00019178,2]
[365164982,1749507046864,-490.0,0.00019178,2]
[365164983,1749507046873,-490.0,0.00019178,2]
[365164984,1749507046883,-490.0,0.00019178,2]
[365164985,1749507046892,-765.62,0.00019178,2]
[365164986,1749507046902,-513.81,0.00019178,2]
[365164987,1749507046911,-490.0,0.00019178,2]
[365164988,1749507046922,-1285.3,0.00019178,2]
[365164989,1749507046931,-628.27,0.00019178,2]
[365164990,1749507046941,-490.0,0.00019178,2]
[365164991,1749507046951,-2400.14,0.00019178,2]
[365164992,1749507046960,-2187.9,0.00019178,2]
[365164993,1749507046970,-1738.89,0.00019178,2]
[365164994,1749507046979,-490.0,0.00019178,2]
[365164995,1749507046989,-490.0,0.00019178,2]
[365164996,1749507046998,-438.96928541,0.00019178,2]
[365164997,1749507047008,-1053.65,0.00019178,2]
[365164998,1749507047017,-490.0,0.00019178,2]
[365164999,1749507047027,-4195.3,0.00019178,2]
[365165000,1749507047036,-490.0,0.00019178,2]
[365165001,1749507047045,-558.88,0.00019178,2]
[365165002,1749507047054,-490.0,0.00019178,2]
[365165003,1749507047063,-448.4895995,0.00019178,2]
[365165004,1749507047072,-490.0,0.00019178,2]
[365165005,1749507047082,-1025.56,0.00019178,2]
[365165006,1749507047093,-1398.14,0.00019178,2]
[365165007,1749507047103,-564.17,0.00019178,2]
[365165008,1749507047112,-622.39450237,0.00019178,2]
[365165009,1749507047122,-480.0,0.00019178,2]
[365165010,1749507047131,-1477.81,0.00019178,2]
[365165011,1749507047140,-2907.87,0.00019178,2]
[365165012,1749507047149,-490.0,0.00019178,2]
[365165013,1749507047158,-490.0,0.00019178,2]
[365165014,1749507047168,-510.35451269,0.00019178,2]
[365165015,1749507047177,-1104.2,0.00019178,2]
[365165016,1749507047186,-490.0,0.00019178,2]
[365165017,1749507047196,-606.59,0.00019178,2]
[365165018,1749507047206,-490.0,0.00019178,2]
[365165019,1749507047215,-1506.92,0.00019178,2]
[365165020,1749507047224,-500.0,0.00019178,2]
[365165021,1749507047234,-757.86,0.00019178,2]
[365165022,1749507047243,-584.59801893,0.00019178,2]
[365165023,1749507047255,-602.88,0.00019178,2]
[365165024,1749507047264,-490.0,0.00019178,2]
[365165025,1749507047274,-490.0,0.00019178,2]
[365165026,1749507047283,-490.0,0.00019178,2]
[365165027,1749507047293,-490.0,0.00019178,2]
[365165029,1749507047302,-514.59,0.00019178,2]
[365165030,1749507047312,-490.0,0.00019178,2]
[365165031,1749507047322,-1733.9,0.00019178,2]
[365165032,1749507047332,-490.0,0.00019178,2]
[365165033,1749507047343,-490.0,0.00019178,2]
[365165034,1749507047353,-895.59,0.00019178,2]
[365165035,1749507047363,-651.56,0.00019178,2]
[365165036,1749507047372,-496.19,0.00019178,2]
[365165037,1749507047382,-798.77,0.00019178,2]
[365165038,1749507047391,-480.0,0.00019178,2]
[365165039,1749507047401,-490.0,0.00019178,2]
[365165040,1749507047410,-490.0,0.00019178,2]
[365165041,1749507047420,-490.0,0.00019178,2]
[365165042,1749507047430,-987.65,0.00019178,2]
[365165043,1749507047439,-490.0,0.00019178,2]
[365165044,1749507047449,-548.87,0.00019178,2]
[365165045,1749507047459,-490.0,0.00019178,2]
[365165046,1749507047468,-490.0,0.00019178,2]
[365165047,1749507047478,-490.0,0.00019178,2]
[365165048,1749507047487,-1396.6,0.00019178,2]
[365165049,1749507047497,-490.0,0.00019178,2]
[365165050,1749507047506,-490.0,0.00019178,2]
[365165051,1749507047516,-490.0,0.00019178,2]
[365165052,1749507047526,-988.26,0.00019178,2]
[365165053,1749507047536,-1933.85,0.00019178,2]
[365165054,1749507047545,-490.0,0.00019178,2]
[365165055,1749507047555,-490.0,0.00019178,2]
[365165056,1749507047566,-1817.1,0.00019178,2]
[365165057,1749507047575,-619.05,0.00019178,2]
[365165058,1749507047586,-3078.2,0.00019178,2]
[365165059,1749507047595,-942.12,0.00019178,2]
[365165060,1749507047605,-490.0,0.00019178,2]
[365165061,1749507047614,-521.47465599,0.00019178,2]
[365165062,1749507047624,-407.07139417,0.00019178,2]
[365165063,1749507047634,-546.85,0.00019178,2]
[365165064,1749507047643,-1002.66,0.00019178,2]
[365165065,1749507047653,-480.0,0.00019178,2]
[365165066,1749507047663,-675.27,0.00019178,2]
[365165067,1749507047673,-151.0,0.00019178,2]
[365165068,1749507047683,-1500.0,0.00019178,2]
[365165069,1749507047692,-178.66,0.00019178,2]
[365165070,1749507047702,-833.29909032,0.00019192,2]
[365165071,1749507047711,-900.0,0.000192,7]
[365165072,1749507047721,-500.0,0.00019233,2]
[365165073,1749507047731,-202.02398717,0.00019233,2]
[365165074,1749507047741,-1045.31738758,0.00019261,2]
[365165075,1749507047751,-150.0,0.00019278,2]
[365165076,1749507047760,-150.0,0.00019278,2]
[365165077,1749507047770,-170.0,0.00019278,2]
[365165078,1749507047779,-150.0,0.00019278,2]
[365165079,1749507047789,-150.0,0.00019278,2]
[365165080,1749507047799,-150.0,0.00019278,2]
[365165081,1749507047808,-150.0,0.00019278,2]
[365165082,1749507047817,-150.0,0.00019278,2]
[365165083,1749507047827,-745.6160821,0.00019294,2]
[365165084,1749507047838,-1200.0,0.000193,7]
[365165085,1749507047847,-202.02398717,0.000193,2]
[365165086,1749507047857,-745.6160821,0.00019338,2]
[365165087,1749507047867,-1154.55,0.00019341,2]
[365165088,1749507047876,-500.0,0.00019341,2]
[365165089,1749507047886,-500.0,0.00019341,2]
[365165090,1749507047896,-151.0,0.00019342,2]
[365165091,1749507047906,-169.50026,0.00019342,2]
[365165092,1749507047917,-169.50026,0.00019342,2]
[365165093,1749507047927,-151.0,0.00019342,2]
[365165094,1749507047936,-151.0,0.00019342,2]
[365165095,1749507047946,-274.445893,0.00019342,2]
[365165096,1749507047956,-230.138801,0.00019342,2]
[365165097,1749507047965,-510.21,0.00019342,2]
[365165098,1749507047975,-506.89,0.00019342,2]
[365165099,1749507047984,-490.0,0.00019342,2]
[365165100,1749507047994,-246.03851329,0.00019342,2]
[365165101,1749507048003,-490.0,0.00019342,2]
[365165102,1749507048013,-490.0,0.00019342,2]
[365165103,1749507048023,-490.0,0.00019342,2]
[365165104,1749507048033,-490.0,0.00019342,2]
[365165105,1749507048043,-490.0,0.00019342,2]
[365165106,1749507048053,-490.0,0.00019342,2]
[365165107,1749507048063,-490.0,0.00019342,2]
[365165108,1749507048073,-490.0,0.00019342,2]
[365165109,1749507048082,-490.0,0.00019342,2]
[365165110,1749507048092,-490.0,0.00019342,2]
[365165111,1749507048102,-490.0,0.00019342,2]
[365165112,1749507048112,-490.0,0.00019342,2]
[365165113,1749507048121,-490.0,0.00019342,2]
[365165114,1749507048131,-490.0,0.00019342,2]
[365165115,1749507048140,-846.36,0.00019342,2]
[365165116,1749507048150,-490.0,0.00019342,2]
[365165117,1749507048159,-746.82,0.00019342,2]
[365165118,1749507048169,-500.48,0.00019342,2]
[365165119,1749507048179,-508.44,0.00019342,2]
[365165120,1749507048188,-490.0,0.00019342,2]
[365165121,1749507048198,-490.0,0.00019342,2]
[365165122,1749507048207,-490.0,0.00019342,2]
[365165123,1749507048218,-490.0,0.00019342,2]
[365165124,1749507048227,-490.0,0.00019342,2]
[365165125,1749507048239,-723.15,0.00019342,2]
[365165126,1749507048250,-490.0,0.00019342,2]
[365165127,1749507048260,-207.65008789,0.00019342,2]
[365165128,1749507048270,-490.0,0.00019342,2]
[365165129,1749507048280,-490.0,0.00019342,2]
[365165130,1749507048289,-490.0,0.00019342,2]
[365165131,1749507048299,-490.0,0.00019342,2]
[365165132,1749507048308,-490.0,0.00019342,2]
[365165133,1749507048318,-490.0,0.00019342,2]
[365165134,1749507048330,-490.0,0.00019342,2]
[365165135,1749507048340,-490.0,0.00019342,2]
[365165136,1749507048350,-880.94,0.00019342,2]
[365165137,1749507048360,-490.0,0.00019342,2]
[365165138,1749507048370,-628.27,0.00019342,2]
[365165139,1749507048380,-559.06,0.00019342,2]
[365165140,1749507048391,-490.0,0.00019342,2]
[365165141,1749507048401,-490.0,0.00019342,2]
[365165142,1749507048411,-490.0,0.00019342,2]
[365165143,1749507048422,-490.0,0.00019342,2]
[365165144,1749507048432,-490.0,0.00019342,2]
[365165145,1749507048442,-575.55,0.00019342,2]
[365165146,1749507048453,-490.0,0.00019342,2]
[365165147,1749507048463,-669.35,0.00019342,2]
[365165148,1749507048473,-490.0,0.00019342,2]
[365165149,1749507048483,-643.38,0.00019342,2]
[365165150,1749507048493,-490.0,0.00019342,2]
[365165151,1749507048503,-490.0,0.00019342,2]
[365165152,1749507048514,-682.85,0.00019342,2]
[365165153,1749507048524,-490.0,0.00019342,2]
[365165154,1749507048535,-1065.97,0.00019342,2]
[365165155,1749507048545,-490.0,0.00019342,2]
[365165156,1749507048555,-490.0,0.00019342,2]
[365165157,1749507048565,-490.0,0.00019342,2]
[365165158,1749507048575,-490.0,0.00019342,2]
[365165159,1749507048585,-490.0,0.00019342,2]
[365165160,1749507048597,-490.0,0.00019342,2]
[365165161,1749507048608,-1065.55,0.00019342,2]
[365165162,1749507048619,-490.0,0.00019342,2]
[365165163,1749507048628,-490.0,0.00019342,2]
[365165164,1749507048639,-503.4,0.00019342,2]
[365165165,1749507048649,-851.4,0.00019342,2]
[365165166,1749507048659,-490.0,0.00019342,2]
[365165167,1749507048669,-803.18,0.00019342,2]
[365165168,1749507048678,-530.24,0.00019342,2]
[365165169,1749507049021,-490.0,0.00019342,2]
[365165170,1749507049039,-490.0,0.00019342,2]
[365165171,1749507049050,-490.0,0.00019342,2]
[365165172,1749507049060,-490.0,0.00019342,2]
[365165173,1749507049070,-1150.13,0.00019342,2]
[365165174,1749507049080,-490.0,0.00019342,2]
[365165175,1749507049091,-853.07,0.00019342,2]
[365165176,1749507049102,-490.0,0.00019342,2]
[365165177,1749507049111,-490.0,0.00019342,2]
[365165178,1749507049121,-699.7,0.00019342,2]
[365165179,1749507049131,-469.48983268,0.00019342,2]
[365165180,1749507049142,-490.0,0.00019342,2]
[365165181,1749507049152,-819.46,0.00019342,2]
[365165182,1749507049162,-490.0,0.00019342,2]
[365165183,1749507049172,-490.0,0.00019342,2]
[365165184,1749507049182,-490.0,0.00019342,2]
[365165185,1749507049191,-490.0,0.00019342,2]
[365165186,1749507049201,-490.0,0.00019342,2]
[365165187,1749507049211,-701.94,0.00019342,2]
[365165188,1749507049221,-854.05,0.00019342,2]
[365165189,1749507049231,-490.0,0.00019342,2]
[365165190,1749507049241,-541.00346182,0.00019342,2]
[365165191,1749507049255,-709.31,0.00019342,2]
[365165192,1749507049266,-490.0,0.00019342,2]
[365165193,1749507049276,-490.0,0.00019342,2]
[365165194,1749507049285,-490.0,0.00019342,2]
[365165195,1749507049295,-490.0,0.00019342,2]
[365165196,1749507049305,-1420.54,0.00019342,2]
[365165197,1749507049314,-490.0,0.00019342,2]